[Event "Titled Tuesday Blitz June 28 Early 2022"]
[White "Sarkar, Justin"]
[Black "Manukian, Artak"]
[WhiteFideId "2010011"]
[BlackFideId "13301373"]
[WhiteElo "2020"]
[BlackElo "2468"]
[Result "0-1"]
[Round "09"]
[TimeControl "180+1"]
[Date "2022.06.28"]
[WhiteClock "0:00:02"]
[BlackClock "0:00:22"]

1. e4 {[%clk 0:02:55]}  c6 {[%clk 0:02:59]} 2. b3 {[%clk 0:02:51]}  d5 {[%clk 0:03:00]} 3. exd5 {[%clk 0:02:51]}  cxd5 {[%clk 0:03:01]} 4. Bb2 {[%clk 0:02:51]}  Nc6 {[%clk 0:03:01]} 5. Nf3 {[%clk 0:02:50]}  Nf6 {[%clk 0:03:02]} 6. Bb5 {[%clk 0:02:46]}  Bg4 {[%clk 0:02:59]} 7. h3 {[%clk 0:02:42]}  Bh5 {[%clk 0:02:57]} 8. g4 {[%clk 0:02:32]}  Bg6 {[%clk 0:02:54]} 9. Ne5 {[%clk 0:02:31]}  Rc8 {[%clk 0:02:42]} 10. h4 {[%clk 0:02:26]}  d4 {[%clk 0:02:35]} 11. Bxc6+ {[%clk 0:02:02]}  bxc6 {[%clk 0:02:34]} 12. f3 {[%clk 0:01:06]}  Qd5 {[%clk 0:02:27]} 13. Qe2 {[%clk 0:01:01]}  Bxc2 {[%clk 0:02:23]} 14. d3 {[%clk 0:00:55]}  Bxb1 {[%clk 0:02:18]} 15. Rxb1 {[%clk 0:00:55]}  e6 {[%clk 0:02:17]} 16. h5 {[%clk 0:00:43]}  Bd6 {[%clk 0:02:07]} 17. Nc4 {[%clk 0:00:29]}  O-O {[%clk 0:02:06]} 18. Kd2 {[%clk 0:00:17]}  Bf4+ {[%clk 0:01:58]} 19. Kc2 {[%clk 0:00:17]}  a5 {[%clk 0:01:52]} 20. a4 {[%clk 0:00:07]}  Rb8 {[%clk 0:01:47]} 21. Ba3 {[%clk 0:00:06]}  Rfc8 {[%clk 0:01:40]} 22. Rhg1 {[%clk 0:00:05]}  h6 {[%clk 0:01:31]} 23. Qe1 {[%clk 0:00:05]}  c5 {[%clk 0:01:19]} 24. Rf1 {[%clk 0:00:04]}  e5 {[%clk 0:00:45]} 25. Qxa5 {[%clk 0:00:03]}  Nxg4 {[%clk 0:00:34]} 26. fxg4 {[%clk 0:00:03]}  Qg2+ {[%clk 0:00:32]} 27. Nd2 {[%clk 0:00:03]}  Ra8 {[%clk 0:00:24]} 28. Qb5 {[%clk 0:00:02]}  Qxd2# {[%clk 0:00:22]} 0-1


[Site "https://www.chess.com"]

[Event "Titled Tuesday Blitz June 28 Early 2022"]
[White "Seo, Jung Min"]
[Black "Hovhannisyan, Robert"]
[WhiteFideId "1734687"]
[BlackFideId "13302507"]
[WhiteElo "2414"]
[BlackElo "2570"]
[Result "1-0"]
[Round "09"]
[TimeControl "180+1"]
[Date "2022.06.28"]
[WhiteClock "0:01:45"]
[BlackClock "0:00:04"]

1. d4 {[%clk 0:03:00]}  d5 {[%clk 0:02:59]} 2. c4 {[%clk 0:03:01]}  c6 {[%clk 0:02:58]} 3. Nf3 {[%clk 0:03:00]}  Nf6 {[%clk 0:02:59]} 4. e3 {[%clk 0:03:00]}  Bg4 {[%clk 0:02:59]} 5. h3 {[%clk 0:03:00]}  Bh5 {[%clk 0:02:59]} 6. g4 {[%clk 0:03:00]}  Bg6 {[%clk 0:02:59]} 7. Ne5 {[%clk 0:03:00]}  e6 {[%clk 0:02:59]} 8. Nc3 {[%clk 0:02:59]}  Nbd7 {[%clk 0:02:59]} 9. Nxg6 {[%clk 0:02:59]}  hxg6 {[%clk 0:02:58]} 10. g5 {[%clk 0:03:00]}  Ne4 {[%clk 0:02:57]} 11. Nxe4 {[%clk 0:03:00]}  dxe4 {[%clk 0:02:58]} 12. h4 {[%clk 0:03:00]}  Bb4+ {[%clk 0:02:57]} 13. Bd2 {[%clk 0:03:00]}  Qa5 {[%clk 0:02:57]} 14. a3 {[%clk 0:02:59]}  Bxd2+ {[%clk 0:02:57]} 15. Qxd2 {[%clk 0:03:00]}  Qxd2+ {[%clk 0:02:58]} 16. Kxd2 {[%clk 0:03:01]}  f5 {[%clk 0:02:58]} 17. b4 {[%clk 0:02:56]}  a5 {[%clk 0:02:40]} 18. Be2 {[%clk 0:02:55]}  Ke7 {[%clk 0:02:37]} 19. c5 {[%clk 0:02:52]}  b5 {[%clk 0:02:07]} 20. a4 {[%clk 0:02:46]}  bxa4 {[%clk 0:02:00]} 21. b5 {[%clk 0:02:45]}  cxb5 {[%clk 0:01:55]} 22. Bxb5 {[%clk 0:02:45]}  Rab8 {[%clk 0:01:54]} 23. Bxa4 {[%clk 0:02:35]}  Rb2+ {[%clk 0:01:46]} 24. Bc2 {[%clk 0:02:35]}  Ra8 {[%clk 0:01:34]} 25. Kc3 {[%clk 0:02:30]}  Rbb8 {[%clk 0:01:29]} 26. Rhb1 {[%clk 0:02:23]}  Kd8 {[%clk 0:01:14]} 27. Ba4 {[%clk 0:02:13]}  Kc7 {[%clk 0:01:07]} 28. Bxd7 {[%clk 0:02:08]}  Kxd7 {[%clk 0:01:08]} 29. Rxb8 {[%clk 0:02:08]}  Rxb8 {[%clk 0:01:08]} 30. Rxa5 {[%clk 0:02:08]}  Rb1 {[%clk 0:00:51]} 31. Ra7+ {[%clk 0:02:07]}  Kc6 {[%clk 0:00:51]} 32. Rxg7 {[%clk 0:02:07]}  Rf1 {[%clk 0:00:43]} 33. Rxg6 {[%clk 0:02:07]}  Kd5 {[%clk 0:00:43]} 34. h5 {[%clk 0:01:58]}  Rxf2 {[%clk 0:00:43]} 35. h6 {[%clk 0:01:58]}  Rh2 {[%clk 0:00:33]} 36. c6 {[%clk 0:01:57]}  Rh1 {[%clk 0:00:17]} 37. c7 {[%clk 0:01:48]}  Rc1+ {[%clk 0:00:14]} 38. Kd2 {[%clk 0:01:48]}  Rxc7 {[%clk 0:00:13]} 39. Rg7 {[%clk 0:01:48]}  Rc8 {[%clk 0:00:07]} 40. h7 {[%clk 0:01:49]}  f4 {[%clk 0:00:08]} 41. exf4 {[%clk 0:01:48]}  e3+ {[%clk 0:00:04]} 42. Kxe3 {[%clk 0:01:47]}  Rc3+ {[%clk 0:00:03]} 43. Kd2 {[%clk 0:01:47]}  Rh3 {[%clk 0:00:04]} 44. g6 {[%clk 0:01:46]}  Kxd4 {[%clk 0:00:03]} 45. Rd7+ {[%clk 0:01:46]}  Ke4 {[%clk 0:00:03]} 46. Rd8 {[%clk 0:01:46]}  Rh2+ {[%clk 0:00:03]} 47. Kc3 {[%clk 0:01:46]}  Rxh7 {[%clk 0:00:04]} 48. gxh7 {[%clk 0:01:45]} 1-0


[Site "https://www.chess.com"]

[Event "Titled Tuesday Blitz June 28 Early 2022"]
[White "So, Wesley"]
[Black "Jones, Gawain C B"]
[WhiteFideId "5202213"]
[BlackFideId "409561"]
[WhiteElo "2742"]
[BlackElo "2657"]
[Result "1-0"]
[Round "09"]
[TimeControl "180+1"]
[Date "2022.06.28"]
[WhiteClock "0:00:34"]
[BlackClock "0:00:03"]

1. e4 {[%clk 0:03:00]}  e5 {[%clk 0:02:57]} 2. Nf3 {[%clk 0:02:59]}  Nc6 {[%clk 0:02:57]} 3. Bc4 {[%clk 0:03:00]}  Nf6 {[%clk 0:02:54]} 4. d3 {[%clk 0:03:00]}  Bc5 {[%clk 0:02:54]} 5. O-O {[%clk 0:03:00]}  d6 {[%clk 0:02:53]} 6. c3 {[%clk 0:03:00]}  a5 {[%clk 0:02:52]} 7. Re1 {[%clk 0:03:00]}  Ba7 {[%clk 0:02:50]} 8. Nbd2 {[%clk 0:02:55]}  O-O {[%clk 0:02:49]} 9. Nf1 {[%clk 0:02:54]}  Be6 {[%clk 0:02:48]} 10. Bb5 {[%clk 0:02:49]}  Ne7 {[%clk 0:02:47]} 11. Ng3 {[%clk 0:02:43]}  c6 {[%clk 0:02:45]} 12. Ba4 {[%clk 0:02:42]}  Ng6 {[%clk 0:02:45]} 13. h3 {[%clk 0:02:38]}  h6 {[%clk 0:02:37]} 14. d4 {[%clk 0:02:37]}  Qc7 {[%clk 0:02:28]} 15. Be3 {[%clk 0:02:33]}  Rfe8 {[%clk 0:02:25]} 16. Qd2 {[%clk 0:02:26]}  b5 {[%clk 0:02:13]} 17. Bc2 {[%clk 0:02:25]}  Rad8 {[%clk 0:02:09]} 18. a4 {[%clk 0:02:24]}  exd4 {[%clk 0:02:01]} 19. cxd4 {[%clk 0:02:23]}  b4 {[%clk 0:01:59]} 20. Bd3 {[%clk 0:02:08]}  d5 {[%clk 0:01:37]} 21. e5 {[%clk 0:02:07]}  Ne4 {[%clk 0:01:28]} 22. Nxe4 {[%clk 0:01:52]}  dxe4 {[%clk 0:01:28]} 23. Bxe4 {[%clk 0:01:53]}  c5 {[%clk 0:01:24]} 24. Bxh6 {[%clk 0:01:45]}  gxh6 {[%clk 0:00:31]} 25. Qxh6 {[%clk 0:01:46]}  cxd4 {[%clk 0:00:22]} 26. Ng5 {[%clk 0:01:41]}  d3 {[%clk 0:00:08]} 27. Qh7+ {[%clk 0:01:35]}  Kf8 {[%clk 0:00:08]} 28. Bxg6 {[%clk 0:01:36]}  d2 {[%clk 0:00:06]} 29. Rf1 {[%clk 0:01:31]}  Rd7 {[%clk 0:00:03]} 30. Qh6+ {[%clk 0:00:57]}  Ke7 {[%clk 0:00:03]} 31. Bxf7 {[%clk 0:00:58]}  Qxe5 {[%clk 0:00:02]} 32. Bxe8 {[%clk 0:00:53]}  Rd6 {[%clk 0:00:02]} 33. Bh5 {[%clk 0:00:49]}  Bg8 {[%clk 0:00:01]} 34. Bg6 {[%clk 0:00:38]}  Rf6 {[%clk 0:00:02]} 35. Qg7+ {[%clk 0:00:36]}  Kd6 {[%clk 0:00:02]} 36. Qxg8 {[%clk 0:00:36]}  Qxg5 {[%clk 0:00:02]} 37. Qd8+ {[%clk 0:00:35]}  Ke5 {[%clk 0:00:03]} 38. Qe7+ {[%clk 0:00:34]}  Kd4 {[%clk 0:00:03]} 39. Qxa7+ {[%clk 0:00:34]} 1-0


[Site "https://www.chess.com"]

[Event "Titled Tuesday Blitz June 28 Early 2022"]
[White "Soham Kamotra"]
[Black "Averjanov, Alexey"]
[WhiteFideId "46647490"]
[BlackFideId "14109867"]
[WhiteElo "2082"]
[BlackElo "2693"]
[Result "1-0"]
[Round "09"]
[TimeControl "180+1"]
[Date "2022.06.28"]
[WhiteClock "0:00:02"]
[BlackClock "0:00:02"]

1. e4 {[%clk 0:02:58]}  c6 {[%clk 0:02:07]} 2. d4 {[%clk 0:02:50]}  d5 {[%clk 0:02:08]} 3. Nc3 {[%clk 0:02:49]}  dxe4 {[%clk 0:02:09]} 4. Nxe4 {[%clk 0:02:50]}  Bf5 {[%clk 0:02:09]} 5. Ng3 {[%clk 0:02:50]}  Bg6 {[%clk 0:02:09]} 6. h4 {[%clk 0:02:50]}  h6 {[%clk 0:02:08]} 7. h5 {[%clk 0:02:47]}  Bh7 {[%clk 0:02:07]} 8. Nf3 {[%clk 0:02:48]}  Nd7 {[%clk 0:02:07]} 9. Bd3 {[%clk 0:02:47]}  Bxd3 {[%clk 0:02:08]} 10. Qxd3 {[%clk 0:02:48]}  e6 {[%clk 0:02:08]} 11. Bd2 {[%clk 0:02:48]}  Ngf6 {[%clk 0:02:07]} 12. O-O-O {[%clk 0:02:47]}  Be7 {[%clk 0:02:07]} 13. Ne4 {[%clk 0:02:47]}  Nxe4 {[%clk 0:02:07]} 14. Qxe4 {[%clk 0:02:48]}  Nf6 {[%clk 0:02:07]} 15. Qe2 {[%clk 0:02:48]}  Qd5 {[%clk 0:02:07]} 16. Kb1 {[%clk 0:02:46]}  Qe4 {[%clk 0:02:06]} 17. Qxe4 {[%clk 0:02:39]}  Nxe4 {[%clk 0:02:05]} 18. Be1 {[%clk 0:02:35]}  O-O {[%clk 0:02:04]} 19. Ne5 {[%clk 0:02:35]}  Rad8 {[%clk 0:02:03]} 20. f3 {[%clk 0:02:35]}  Nf6 {[%clk 0:02:03]} 21. Bf2 {[%clk 0:02:35]}  Nd7 {[%clk 0:02:01]} 22. Nd3 {[%clk 0:02:30]}  Bd6 {[%clk 0:01:55]} 23. c4 {[%clk 0:02:27]}  b5 {[%clk 0:01:51]} 24. b3 {[%clk 0:02:06]}  a6 {[%clk 0:01:49]} 25. Kc2 {[%clk 0:01:56]}  Rc8 {[%clk 0:01:48]} 26. Kc3 {[%clk 0:01:46]}  Rfd8 {[%clk 0:01:47]} 27. Rhe1 {[%clk 0:01:43]}  Kf8 {[%clk 0:01:43]} 28. g4 {[%clk 0:01:43]}  Bc7 {[%clk 0:01:35]} 29. Bh4 {[%clk 0:01:39]}  Re8 {[%clk 0:01:32]} 30. Kc2 {[%clk 0:01:18]}  Ba5 {[%clk 0:01:28]} 31. Re2 {[%clk 0:01:13]}  Bb6 {[%clk 0:01:27]} 32. Ne5 {[%clk 0:01:07]}  Nxe5 {[%clk 0:01:24]} 33. Rxe5 {[%clk 0:01:08]}  Bd8 {[%clk 0:01:20]} 34. Bxd8 {[%clk 0:00:58]}  Rexd8 {[%clk 0:01:21]} 35. Rc5 {[%clk 0:00:58]}  Ke7 {[%clk 0:01:18]} 36. Kc3 {[%clk 0:00:57]}  Kd6 {[%clk 0:01:15]} 37. f4 {[%clk 0:00:47]}  Rb8 {[%clk 0:01:11]} 38. f5 {[%clk 0:00:46]}  Re8 {[%clk 0:01:05]} 39. f6 {[%clk 0:00:29]}  gxf6 {[%clk 0:01:03]} 40. Rf1 {[%clk 0:00:30]}  Rg8 {[%clk 0:01:01]} 41. Rxf6 {[%clk 0:00:26]}  Rxg4 {[%clk 0:01:00]} 42. Rxf7 {[%clk 0:00:23]}  bxc4 {[%clk 0:00:59]} 43. Rxc4 {[%clk 0:00:20]}  Rg3+ {[%clk 0:00:58]} 44. Kb2 {[%clk 0:00:20]}  Rb5 {[%clk 0:00:56]} 45. Rf8 {[%clk 0:00:15]}  Rg2+ {[%clk 0:00:55]} 46. Ka3 {[%clk 0:00:11]}  Ra5+ {[%clk 0:00:52]} 47. Kb4 {[%clk 0:00:11]}  Rgxa2 {[%clk 0:00:51]} 48. Rd8+ {[%clk 0:00:11]}  Ke7 {[%clk 0:00:51]} 49. Rc8 {[%clk 0:00:11]}  Rb5+ {[%clk 0:00:49]} 50. Kc3 {[%clk 0:00:11]}  Ra3 {[%clk 0:00:48]} 51. R4xc6 {[%clk 0:00:06]}  Rbxb3+ {[%clk 0:00:47]} 52. Kc2 {[%clk 0:00:06]}  Rh3 {[%clk 0:00:47]} 53. R8c7+ {[%clk 0:00:05]}  Kd8 {[%clk 0:00:44]} 54. Rh7 {[%clk 0:00:05]}  Ra2+ {[%clk 0:00:39]} 55. Kb1 {[%clk 0:00:05]}  Rf2 {[%clk 0:00:38]} 56. Rd6+ {[%clk 0:00:04]}  Kc8 {[%clk 0:00:37]} 57. Rc6+ {[%clk 0:00:05]}  Kd8 {[%clk 0:00:36]} 58. Rd6+ {[%clk 0:00:05]}  Ke8 {[%clk 0:00:37]} 59. Rxe6+ {[%clk 0:00:05]}  Kf8 {[%clk 0:00:37]} 60. Rc6 {[%clk 0:00:03]}  Rf1+ {[%clk 0:00:29]} 61. Kb2 {[%clk 0:00:03]}  Rf2+ {[%clk 0:00:27]} 62. Kb1 {[%clk 0:00:03]}  Kg8 {[%clk 0:00:23]} 63. Ra7 {[%clk 0:00:02]}  Rf1+ {[%clk 0:00:21]} 64. Kb2 {[%clk 0:00:01]}  Rf2+ {[%clk 0:00:19]} 65. Kb1 {[%clk 0:00:02]}  Rf1+ {[%clk 0:00:13]} 66. Kb2 {[%clk 0:00:01]}  Rf2+ {[%clk 0:00:06]} 67. Rc2 {[%clk 0:00:02]}  Rxc2+ {[%clk 0:00:06]} 68. Kxc2 {[%clk 0:00:03]}  Rxh5 {[%clk 0:00:07]} 69. Kd3 {[%clk 0:00:03]}  Ra5 {[%clk 0:00:06]} 70. Ke4 {[%clk 0:00:02]}  h5 {[%clk 0:00:05]} 71. d5 {[%clk 0:00:03]}  Kf8 {[%clk 0:00:04]} 72. Rh7 {[%clk 0:00:01]}  h4 {[%clk 0:00:02]} 73. Ke5 {[%clk 0:00:02]} 1-0


[Site "https://www.chess.com"]

[Event "Titled Tuesday Blitz June 28 Early 2022"]
[White "Tan, Jun Ying"]
[Black "Samunenkov, Ihor"]
[WhiteFideId "5710413"]
[BlackFideId "14187086"]
[WhiteElo "1827"]
[BlackElo "2409"]
[Result "0-1"]
[Round "09"]
[TimeControl "180+1"]
[Date "2022.06.28"]
[WhiteClock "0:00:11"]
[BlackClock "0:00:04"]

1. d4 {[%clk 0:02:59]}  Nf6 {[%clk 0:02:59]} 2. c4 {[%clk 0:02:59]}  e6 {[%clk 0:03:00]} 3. Nc3 {[%clk 0:02:59]}  Bb4 {[%clk 0:02:59]} 4. e3 {[%clk 0:03:00]}  O-O {[%clk 0:03:00]} 5. Ne2 {[%clk 0:03:01]}  Re8 {[%clk 0:02:59]} 6. a3 {[%clk 0:03:00]}  Bf8 {[%clk 0:02:59]} 7. g4 {[%clk 0:03:00]}  Nxg4 {[%clk 0:02:47]} 8. Rg1 {[%clk 0:03:00]}  f5 {[%clk 0:02:43]} 9. h3 {[%clk 0:02:49]}  Nf6 {[%clk 0:02:42]} 10. Nf4 {[%clk 0:02:49]}  d6 {[%clk 0:02:37]} 11. Qc2 {[%clk 0:02:46]}  e5 {[%clk 0:02:35]} 12. dxe5 {[%clk 0:02:43]}  dxe5 {[%clk 0:02:28]} 13. Nfd5 {[%clk 0:02:42]}  c6 {[%clk 0:02:24]} 14. Nxf6+ {[%clk 0:02:41]}  Qxf6 {[%clk 0:02:25]} 15. Bd2 {[%clk 0:02:41]}  Be6 {[%clk 0:02:24]} 16. O-O-O {[%clk 0:02:41]}  Nd7 {[%clk 0:02:24]} 17. f4 {[%clk 0:02:36]}  e4 {[%clk 0:02:20]} 18. Ne2 {[%clk 0:02:33]}  Rad8 {[%clk 0:02:06]} 19. Bc3 {[%clk 0:02:30]}  Qf7 {[%clk 0:02:03]} 20. Nd4 {[%clk 0:02:29]}  Nc5 {[%clk 0:01:57]} 21. Kb1 {[%clk 0:02:23]}  Bxc4 {[%clk 0:01:02]} 22. Bxc4 {[%clk 0:02:18]}  Qxc4 {[%clk 0:01:03]} 23. Nxf5 {[%clk 0:02:16]}  Rxd1+ {[%clk 0:01:01]} 24. Rxd1 {[%clk 0:02:01]}  Nd3 {[%clk 0:00:56]} 25. Qg2 {[%clk 0:01:51]}  g6 {[%clk 0:00:54]} 26. h4 {[%clk 0:01:45]}  Qd5 {[%clk 0:00:42]} 27. Nd4 {[%clk 0:01:39]}  Nxf4 {[%clk 0:00:30]} 28. exf4 {[%clk 0:01:23]}  c5 {[%clk 0:00:29]} 29. f5 {[%clk 0:01:24]}  cxd4 {[%clk 0:00:22]} 30. fxg6 {[%clk 0:01:24]}  Bg7 {[%clk 0:00:15]} 31. gxh7+ {[%clk 0:01:02]}  Kh8 {[%clk 0:00:15]} 32. Rg1 {[%clk 0:00:52]}  Qf7 {[%clk 0:00:15]} 33. Bb4 {[%clk 0:00:42]}  e3 {[%clk 0:00:11]} 34. h5 {[%clk 0:00:39]}  e2 {[%clk 0:00:04]} 35. Re1 {[%clk 0:00:33]}  d3 {[%clk 0:00:03]} 36. h6 {[%clk 0:00:28]}  Bxh6 {[%clk 0:00:03]} 37. Bc3+ {[%clk 0:00:26]}  Bg7 {[%clk 0:00:04]} 38. Qg5 {[%clk 0:00:17]}  Bxc3 {[%clk 0:00:02]} 39. Rg1 {[%clk 0:00:13]}  Bg7 {[%clk 0:00:02]} 40. Qd2 {[%clk 0:00:12]}  Qf5 {[%clk 0:00:01]} 41. Rc1 {[%clk 0:00:11]}  Qxh7 {[%clk 0:00:02]} 42. Re1 {[%clk 0:00:11]}  Qg6 {[%clk 0:00:02]} 43. Rh1+ {[%clk 0:00:11]}  Kg8 {[%clk 0:00:02]} 44. Qc1 {[%clk 0:00:11]}  d2+ {[%clk 0:00:02]} 45. Qc2 {[%clk 0:00:11]}  Qxc2+ {[%clk 0:00:03]} 46. Kxc2 {[%clk 0:00:11]}  e1=Q {[%clk 0:00:03]} 47. Rxe1 {[%clk 0:00:10]}  dxe1=Q {[%clk 0:00:04]} 48. Kb3 {[%clk 0:00:11]} 0-1


[Site "https://www.chess.com"]

[Event "Titled Tuesday Blitz June 28 Early 2022"]
[White "Tifferet, Shaked"]
[Black "Liyanage, Ranindu Dilshan"]
[WhiteFideId "2811529"]
[BlackFideId "9915834"]
[WhiteElo "2083"]
[BlackElo "1858"]
[Result "1-0"]
[Round "09"]
[TimeControl "180+1"]
[Date "2022.06.28"]
[WhiteClock "0:00:06"]
[BlackClock "0:00:06"]

1. Nf3 {[%clk 0:03:00]}  Nf6 {[%clk 0:02:55]} 2. c4 {[%clk 0:03:00]}  e6 {[%clk 0:02:50]} 3. Nc3 {[%clk 0:02:59]}  d5 {[%clk 0:02:47]} 4. e3 {[%clk 0:02:58]}  dxc4 {[%clk 0:02:46]} 5. Bxc4 {[%clk 0:02:58]}  a6 {[%clk 0:02:47]} 6. a4 {[%clk 0:02:56]}  b6 {[%clk 0:02:46]} 7. O-O {[%clk 0:02:55]}  Bb7 {[%clk 0:02:46]} 8. d4 {[%clk 0:02:54]}  Nbd7 {[%clk 0:02:47]} 9. b3 {[%clk 0:02:50]}  Bd6 {[%clk 0:02:41]} 10. Bb2 {[%clk 0:02:49]}  O-O {[%clk 0:02:40]} 11. Qe2 {[%clk 0:02:49]}  c5 {[%clk 0:02:39]} 12. Rfd1 {[%clk 0:02:46]}  Qe7 {[%clk 0:02:37]} 13. Rac1 {[%clk 0:02:37]}  e5 {[%clk 0:02:13]} 14. dxc5 {[%clk 0:02:20]}  Nxc5 {[%clk 0:02:07]} 15. h3 {[%clk 0:01:56]}  e4 {[%clk 0:02:00]} 16. Nd4 {[%clk 0:01:54]}  Qe5 {[%clk 0:01:58]} 17. g3 {[%clk 0:01:54]}  Qg5 {[%clk 0:01:49]} 18. Kg2 {[%clk 0:01:42]}  Nd3 {[%clk 0:01:40]} 19. Rc2 {[%clk 0:01:34]}  h5 {[%clk 0:01:39]} 20. h4 {[%clk 0:01:28]}  Qg6 {[%clk 0:01:37]} 21. Rcd2 {[%clk 0:01:24]}  Ng4 {[%clk 0:01:33]} 22. f3 {[%clk 0:00:51]}  Nxb2 {[%clk 0:01:03]} 23. Rxb2 {[%clk 0:00:47]}  exf3+ {[%clk 0:00:59]} 24. Nxf3 {[%clk 0:00:46]}  Nxe3+ {[%clk 0:00:52]} 25. Qxe3 {[%clk 0:00:46]}  Qxg3+ {[%clk 0:00:52]} 26. Kf1 {[%clk 0:00:46]}  Bxf3 {[%clk 0:00:53]} 27. Rxd6 {[%clk 0:00:21]}  Bg2+ {[%clk 0:00:46]} 28. Ke2 {[%clk 0:00:15]}  Qxd6 {[%clk 0:00:45]} 29. Rd2 {[%clk 0:00:11]}  Qg6 {[%clk 0:00:42]} 30. Kd1 {[%clk 0:00:11]}  Rfe8 {[%clk 0:00:39]} 31. Qf2 {[%clk 0:00:09]}  Bh3 {[%clk 0:00:37]} 32. Kc1 {[%clk 0:00:09]}  Rad8 {[%clk 0:00:35]} 33. Kb2 {[%clk 0:00:07]}  Qf6 {[%clk 0:00:31]} 34. Qh2 {[%clk 0:00:06]}  Rxd2+ {[%clk 0:00:25]} 35. Qxd2 {[%clk 0:00:06]}  Bg4 {[%clk 0:00:26]} 36. Ka2 {[%clk 0:00:05]}  Qxh4 {[%clk 0:00:20]} 37. Bxa6 {[%clk 0:00:05]}  Qe7 {[%clk 0:00:17]} 38. Bc4 {[%clk 0:00:05]}  Rd8 {[%clk 0:00:14]} 39. Qf2 {[%clk 0:00:05]}  Qf6 {[%clk 0:00:13]} 40. Qh2 {[%clk 0:00:03]}  Qxc3 {[%clk 0:00:11]} 41. Qc7 {[%clk 0:00:02]}  Rd2+ {[%clk 0:00:11]} 42. Ka3 {[%clk 0:00:02]}  Rf2 {[%clk 0:00:06]} 43. Bxf7+ {[%clk 0:00:02]}  Rxf7 {[%clk 0:00:04]} 44. Qxc3 {[%clk 0:00:02]}  Rf6 {[%clk 0:00:05]} 45. Qb4 {[%clk 0:00:03]}  Kh7 {[%clk 0:00:05]} 46. Qe4+ {[%clk 0:00:03]}  Kh6 {[%clk 0:00:05]} 47. Qe5 {[%clk 0:00:03]}  h4 {[%clk 0:00:04]} 48. b4 {[%clk 0:00:03]}  h3 {[%clk 0:00:04]} 49. Qg3 {[%clk 0:00:03]}  Kg5 {[%clk 0:00:04]} 50. Qe3+ {[%clk 0:00:03]}  Kh5 {[%clk 0:00:04]} 51. Qe5+ {[%clk 0:00:03]}  Rf5 {[%clk 0:00:04]} 52. Qxg7 {[%clk 0:00:03]}  h2 {[%clk 0:00:04]} 53. Qh7+ {[%clk 0:00:03]}  Kg5 {[%clk 0:00:05]} 54. Qxh2 {[%clk 0:00:04]}  Rf3+ {[%clk 0:00:06]} 55. Kb2 {[%clk 0:00:04]}  Rf4 {[%clk 0:00:07]} 56. Qd2 {[%clk 0:00:04]}  Bf5 {[%clk 0:00:07]} 57. Qd6 {[%clk 0:00:04]}  Re4 {[%clk 0:00:06]} 58. Qxb6 {[%clk 0:00:04]}  Kf4 {[%clk 0:00:07]} 59. Kc3 {[%clk 0:00:04]}  Re3+ {[%clk 0:00:07]} 60. Kd4 {[%clk 0:00:04]}  Re4+ {[%clk 0:00:07]} 61. Kc5 {[%clk 0:00:05]}  Re5+ {[%clk 0:00:07]} 62. Kd6 {[%clk 0:00:04]}  Re6+ {[%clk 0:00:07]} 63. Kc7 {[%clk 0:00:04]}  Rxb6 {[%clk 0:00:08]} 64. Kxb6 {[%clk 0:00:05]}  Ke5 {[%clk 0:00:08]} 65. Kc7 {[%clk 0:00:04]}  Ke6 {[%clk 0:00:08]} 66. b5 {[%clk 0:00:04]}  Be4 {[%clk 0:00:08]} 67. a5 {[%clk 0:00:05]}  Bd3 {[%clk 0:00:07]} 68. b6 {[%clk 0:00:05]}  Ba6 {[%clk 0:00:06]} 69. b7 {[%clk 0:00:05]}  Bxb7 {[%clk 0:00:06]} 70. Kxb7 {[%clk 0:00:06]} 1-0


[Site "https://www.chess.com"]

[Event "Titled Tuesday Blitz June 28 Early 2022"]
[White "Wartiovaara, Oliver"]
[Black "Magallanes, Rey Jomar"]
[WhiteFideId "513024"]
[BlackFideId "5205948"]
[WhiteElo "1971"]
[BlackElo "2167"]
[Result "0-1"]
[Round "09"]
[TimeControl "180+1"]
[Date "2022.06.28"]
[WhiteClock "0:00:30"]
[BlackClock "0:00:58"]

1. d4 {[%clk 0:03:00]}  d5 {[%clk 0:02:59]} 2. c4 {[%clk 0:02:59]}  e6 {[%clk 0:02:55]} 3. Nc3 {[%clk 0:02:57]}  Nf6 {[%clk 0:02:55]} 4. Bg5 {[%clk 0:02:58]}  Be7 {[%clk 0:02:54]} 5. cxd5 {[%clk 0:02:56]}  exd5 {[%clk 0:02:53]} 6. Qc2 {[%clk 0:02:43]}  Nbd7 {[%clk 0:02:42]} 7. e3 {[%clk 0:02:42]}  O-O {[%clk 0:02:40]} 8. Bd3 {[%clk 0:02:40]}  h6 {[%clk 0:02:35]} 9. Bf4 {[%clk 0:02:32]}  c6 {[%clk 0:02:25]} 10. h3 {[%clk 0:02:30]}  b6 {[%clk 0:02:16]} 11. Nf3 {[%clk 0:02:27]}  Bb7 {[%clk 0:02:14]} 12. O-O {[%clk 0:02:26]}  c5 {[%clk 0:02:13]} 13. dxc5 {[%clk 0:02:20]}  Nxc5 {[%clk 0:02:12]} 14. Rfd1 {[%clk 0:02:09]}  Nxd3 {[%clk 0:02:02]} 15. Rxd3 {[%clk 0:01:59]}  Rc8 {[%clk 0:02:00]} 16. Rad1 {[%clk 0:01:52]}  Ne4 {[%clk 0:01:58]} 17. Qb3 {[%clk 0:01:37]}  Nc5 {[%clk 0:01:57]} 18. Rxd5 {[%clk 0:01:22]}  Nxb3 {[%clk 0:01:56]} 19. Rxd8 {[%clk 0:01:20]}  Rfxd8 {[%clk 0:01:48]} 20. Rxd8+ {[%clk 0:01:19]}  Rxd8 {[%clk 0:01:49]} 21. axb3 {[%clk 0:01:20]}  Bxf3 {[%clk 0:01:46]} 22. gxf3 {[%clk 0:01:20]}  Rd2 {[%clk 0:01:43]} 23. e4 {[%clk 0:01:10]}  Rxb2 {[%clk 0:01:41]} 24. Nd5 {[%clk 0:01:10]}  Bd8 {[%clk 0:01:39]} 25. b4 {[%clk 0:01:08]}  a5 {[%clk 0:01:35]} 26. bxa5 {[%clk 0:01:09]}  bxa5 {[%clk 0:01:35]} 27. Be5 {[%clk 0:01:09]}  Rb1+ {[%clk 0:01:32]} 28. Kg2 {[%clk 0:01:08]}  a4 {[%clk 0:01:32]} 29. Nc3 {[%clk 0:01:06]}  Rb4 {[%clk 0:01:25]} 30. Bd6 {[%clk 0:01:01]}  Rc4 {[%clk 0:01:24]} 31. Nb5 {[%clk 0:00:58]}  g6 {[%clk 0:01:18]} 32. Kf1 {[%clk 0:00:50]}  f5 {[%clk 0:01:15]} 33. e5 {[%clk 0:00:48]}  Kf7 {[%clk 0:01:14]} 34. Ke2 {[%clk 0:00:45]}  Be7 {[%clk 0:01:14]} 35. Ke3 {[%clk 0:00:36]}  Ke6 {[%clk 0:01:09]} 36. f4 {[%clk 0:00:31]}  Re4+ {[%clk 0:01:05]} 37. Kf3 {[%clk 0:00:29]}  Bxd6 {[%clk 0:01:01]} 38. Nxd6 {[%clk 0:00:30]}  a3 {[%clk 0:00:58]} 0-1


[Site "https://www.chess.com"]